bitfinex/quotes_BTCUSD_20230904
["timestamp","ask_amount","ask_price","bid_price","bid_amount"]
[1693833673887,2.99367063,25901.0,25900.0,2.2017456]
[1693833674340,2.20150063,25901.0,25900.0,2.50772224]
[1693833674542,0.12562873,25901.0,25900.0,2.50772224]
[1693833676546,0.033,25901.0,25900.0,2.50772224]
[1693833677525,0.033,25901.0,25900.0,2.61562224]
[1693833682985,0.033,25901.0,25900.0,2.50772224]
[1693833688584,1.57734,25901.0,25900.0,2.2217456]
[1693833688790,1.58708203,25901.0,25900.0,2.2217456]
[1693833689430,2.35925203,25901.0,25900.0,2.2217456]
[1693833689641,2.45188076,25901.0,25900.0,2.2217456]
[1693833691112,3.24405076,25901.0,25900.0,2.2217456]
[1693833699630,2.47188076,25901.0,25900.0,2.2217456]
[1693833699809,2.46213873,25901.0,25900.0,2.2217456]
[1693833702043,1.66996873,25901.0,25900.0,2.4799517]
[1693833702376,0.89779873,25901.0,25900.0,2.4799517]
[1693833703285,0.89779873,25901.0,25900.0,2.4999517]
[1693833704653,0.89779873,25901.0,25900.0,2.4799517]
[1693833704795,0.89779873,25901.0,25900.0,2.4999517]
[1693833710762,0.89779873,25901.0,25900.0,2.4799517]
[1693833710976,0.89779873,25901.0,25900.0,2.4999517]
[1693833716081,1.66996873,25901.0,25900.0,2.2417456]
[1693833719426,1.66996873,25901.0,25900.0,2.2217456]
[1693833719732,1.66996873,25901.0,25900.0,2.2417456]
[1693833720138,1.66996873,25901.0,25900.0,2.2217456]
[1693833720697,1.66996873,25901.0,25900.0,2.2417456]
[1693833723624,1.80890481,25901.0,25900.0,2.2417456]
[1693833724093,1.82099984,25901.0,25900.0,2.2417456]
[1693833728693,1.72837111,25901.0,25900.0,2.2417456]
[1693833730539,1.72837111,25901.0,25900.0,2.2217456]
[1693833730737,1.72837111,25901.0,25900.0,2.2417456]
[1693833736043,1.72837111,25901.0,25900.0,2.2217456]
[1693833736199,1.72847974,25901.0,25900.0,2.2417456]
[1693833739464,3.38071974,25901.0,25900.0,2.02867782]
[1693833739679,4.04255946,25901.0,25900.0,2.02867782]
[1693833739992,4.10600403,25901.0,25900.0,2.02867782]
[1693833740195,4.10678403,25901.0,25900.0,2.02867782]
[1693833740399,4.10750403,25901.0,25900.0,2.02867782]
[1693833740597,4.10690403,25901.0,25900.0,2.02867782]
[1693833740728,4.10936403,25901.0,25900.0,2.02867782]
[1693833740928,4.10912403,25901.0,25900.0,2.02867782]
[1693833741177,4.10888403,25901.0,25900.0,2.02867782]
[1693833741381,4.10852403,25901.0,25900.0,2.02867782]
[1693833741615,4.03922403,25901.0,25900.0,2.02867782]
[1693833742001,4.10462403,25901.0,25900.0,2.02867782]
[1693833742221,4.11692403,25901.0,25900.0,2.02867782]
[1693833742369,4.10786403,25901.0,25900.0,2.02867782]
[1693833742572,4.1194694,25901.0,25900.0,2.00867782]
[1693833742770,4.35229058,25901.0,25900.0,2.00867782]
[1693833742971,4.35151058,25901.0,25900.0,2.00867782]
[1693833743225,4.34905058,25901.0,25900.0,2.00867782]
[1693833743397,4.16401764,25901.0,25900.0,2.00867782]
[1693833743601,4.34891478,25901.0,25900.0,2.00867782]
[1693833743761,4.34897478,25901.0,25900.0,2.00867782]
[1693833743961,4.34879478,25901.0,25900.0,2.00867782]
[1693833744168,4.34897478,25901.0,25900.0,2.00867782]
[1693833744370,4.34951478,25901.0,25900.0,2.00867782]
[1693833744581,4.35113478,25901.0,25900.0,2.00867782]
[1693833744784,4.35029478,25901.0,25900.0,2.00867782]
[1693833744981,4.35017478,25901.0,25900.0,2.00867782]
[1693833745233,4.34993478,25901.0,25900.0,2.00867782]
[1693833745487,4.34927478,25901.0,25900.0,2.00867782]
[1693833745661,4.34933478,25901.0,25900.0,2.00867782]
[1693833745863,4.34945478,25901.0,25900.0,2.00867782]
[1693833746061,4.34879478,25901.0,25900.0,2.00867782]
[1693833746278,4.35005478,25901.0,25900.0,2.00867782]
[1693833746466,4.34831478,25901.0,25900.0,2.00867782]
[1693833746624,4.34849478,25901.0,25900.0,2.00867782]
[1693833746839,4.34981478,25901.0,25900.0,2.00867782]
[1693833747039,4.34999478,25901.0,25900.0,2.00867782]
[1693833747237,4.35185478,25901.0,25900.0,2.00867782]
[1693833747466,4.35041478,25901.0,25900.0,2.00867782]
[1693833747642,4.35083478,25901.0,25900.0,2.00867782]
[1693833748058,4.35065478,25901.0,25900.0,2.00867782]
[1693833748259,4.35053478,25901.0,25900.0,2.00867782]
[1693833748468,4.35101478,25901.0,25900.0,2.00867782]
[1693833748683,4.1198136,25901.0,25900.0,2.00867782]
[1693833748905,4.1191536,25901.0,25900.0,2.00867782]
[1693833749111,4.1097332,25901.0,25900.0,2.00867782]
[1693833749342,4.65257438,25901.0,25900.0,2.00867782]
[1693833749525,4.65029438,25901.0,25900.0,2.00867782]
[1693833749742,4.65005438,25901.0,25900.0,2.00867782]
[1693833749957,4.65439526,25901.0,25900.0,2.00867782]
[1693833750189,4.45801724,25901.0,25900.0,2.00867782]
[1693833750422,4.45849724,25901.0,25900.0,2.00867782]
[1693833750636,4.45885724,25901.0,25900.0,2.00867782]
[1693833750858,4.46695724,25901.0,25900.0,2.00867782]
[1693833751075,4.45463724,25901.0,25900.0,2.00767782]
[1693833751292,4.47067724,25901.0,25900.0,2.00867782]
[1693833751492,4.46827724,25901.0,25900.0,2.00867782]
[1693833751701,4.46791724,25901.0,25900.0,2.00867782]
[1693833751941,4.43245724,25901.0,25900.0,2.00667782]
[1693833752180,4.45879724,25901.0,25900.0,2.00867782]
[1693833752406,4.25519606,25901.0,25900.0,2.01067782]
[1693833752576,4.48495103,25901.0,25900.0,2.01067782]
[1693833752776,4.48975103,25901.0,25900.0,2.01067782]
[1693833753010,4.49023103,25901.0,25900.0,2.01067782]
[1693833753187,4.49209103,25901.0,25900.0,2.01067782]
[1693833753391,4.49293103,25901.0,25900.0,2.01067782]
[1693833753591,4.26245606,25901.0,25900.0,1.95067782]
[1693833753919,4.26413606,25901.0,25900.0,1.95067782]
[1693833754142,4.26461606,25901.0,25900.0,1.95067782]
[1693833754374,4.26971606,25901.0,25900.0,1.95067782]
[1693833754600,4.26833606,25901.0,25900.0,1.95067782]
[1693833754777,4.26965606,25901.0,25900.0,1.93067782]
[1693833754985,4.26899606,25901.0,25900.0,1.93067782]
[1693833755336,4.27019606,25901.0,25900.0,1.93067782]
[1693833755540,4.26911606,25901.0,25900.0,1.93067782]
[1693833755737,4.27019606,25901.0,25900.0,1.93067782]
[1693833755945,4.27007606,25901.0,25900.0,1.93067782]
[1693833756265,4.26767606,25901.0,25900.0,1.93067782]
[1693833756469,4.28357606,25901.0,25900.0,1.93067782]
[1693833756668,4.28045606,25901.0,25900.0,1.93067782]
[1693833756849,4.27775606,25901.0,25900.0,1.93067782]
[1693833757050,4.27763606,25901.0,25900.0,1.93067782]
[1693833757246,4.27919606,25901.0,25900.0,1.93067782]
[1693833757450,4.27739606,25901.0,25900.0,1.93067782]
[1693833757650,4.27811606,25901.0,25900.0,1.93067782]
[1693833758015,4.27769606,25901.0,25900.0,1.93067782]
[1693833758235,4.82004494,25901.0,25900.0,1.53876982]
[1693833758438,3.861525,25897.0,25893.0,0.01948214]
[1693833758568,0.68085379,25896.0,25895.0,0.00098697]
[1693833758767,4.33634214,25896.0,25893.0,0.01948214]
[1693833758967,1.652658,25894.0,25893.0,0.01948214]
[1693833759332,2.33974478,25894.0,25893.0,0.01948214]
[1693833759715,0.01046563,25893.0,25889.0,0.11263069]
[1693833759914,1.544938,25891.0,25889.0,0.14758106]
[1693833760089,2.317407,25891.0,25889.0,0.03495037]
[1693833760524,2.471938,25891.0,25889.0,0.03495037]
[1693833760714,2.471938,25891.0,25888.0,0.06098896]
[1693833761525,2.471938,25891.0,25889.0,0.011]
[1693833761914,2.531938,25891.0,25886.0,0.25757359]
[1693833762124,0.01134489,25890.0,25889.0,0.011]
[1693833762331,0.78384389,25890.0,25889.0,0.011]
[1693833762949,0.78384389,25890.0,25886.0,0.25757359]
[1693833763300,0.78384389,25890.0,25887.0,0.06135294]
[1693833763506,0.772499,25890.0,25887.0,0.06135294]
[1693833763926,0.772499,25890.0,25886.0,0.06447359]
[1693833764341,0.772499,25890.0,25886.0,0.06347359]
[1693833764756,0.774499,25890.0,25889.0,0.001]
[1693833765173,0.772499,25890.0,25887.0,0.038627]
[1693833765377,0.774499,25890.0,25889.0,0.011]
[1693833765581,0.776499,25890.0,25889.0,0.011]
[1693833765757,0.774499,25890.0,25887.0,0.038627]
[1693833765961,0.78605027,25890.0,25887.0,0.038627]
[1693833766369,0.78605027,25890.0,25889.0,0.001]
[1693833766752,0.78805027,25890.0,25889.0,0.012]
[1693833766932,0.78605027,25890.0,25889.0,0.001]
[1693833767133,0.774499,25890.0,25889.0,0.001]
[1693833767535,0.772499,25890.0,25887.0,0.038627]
[1693833767729,0.772499,25890.0,25887.0,0.07053932]
[1693833767730,0.78447059,25890.0,25887.0,0.07053932]
[1693833768077,0.78747059,25890.0,25887.0,0.07153932]
[1693833768493,0.80947059,25890.0,25887.0,0.08253932]
[1693833768919,0.03697159,25890.0,25887.0,0.08253932]
[1693833770012,0.03697159,25890.0,25889.0,0.1079]
[1693833770013,0.025,25890.0,25889.0,0.1079]
[1693833770357,0.005,25890.0,25889.0,0.41340654]
[1693833770970,0.002,25890.0,25889.0,0.41340654]
[1693833771173,0.004,25890.0,25889.0,0.41440654]
[1693833771353,0.002,25890.0,25889.0,0.80149332]
[1693833771693,0.004,25890.0,25889.0,0.81249332]
[1693833775504,0.004,25890.0,25889.0,0.96699732]
[1693833787876,0.004,25890.0,25889.0,1.02699732]
[1693833788084,0.004,25890.0,25889.0,0.75209208]
[1693833789635,0.004,25890.0,25889.0,0.84447078]
[1693833792338,0.002,25890.0,25889.0,0.84347078]
[1693833792540,0.154492,25893.0,25891.0,0.154492]
[1693833792686,0.154492,25893.0,25892.0,0.2065912]
[1693833794150,0.154492,25893.0,25892.0,0.47652701]
[1693833794939,0.155492,25893.0,25892.0,0.48952701]
[1693833795897,0.156492,25893.0,25892.0,0.50152701]
[1693833801915,0.156492,25893.0,25892.0,0.57876901]
[1693833803751,0.002,25893.0,25892.0,0.57876901]
[1693833804472,0.042,25893.0,25892.0,0.57876901]
[1693833809878,0.042,25893.0,25892.0,0.025]
[1693833810046,0.042,25893.0,25892.0,0.102242]
[1693833810047,0.05152467,25893.0,25892.0,0.102242]
[1693833810651,0.05152467,25893.0,25892.0,0.140863]
[1693833830656,0.05152467,25893.0,25892.0,0.102242]
[1693833832738,0.05152467,25893.0,25892.0,0.025]
[1693833832911,0.05152467,25893.0,25892.0,0.063621]
[1693833833107,0.05152467,25893.0,25892.0,0.1502497]
[1693833833746,0.042,25893.0,25892.0,0.1888707]
[1693833835502,0.05357869,25893.0,25892.0,0.1888707]
[1693833837030,0.05357869,25893.0,25892.0,0.025]
[1693833841195,0.05357869,25893.0,25892.0,0.063621]
[1693833845247,0.05357869,25893.0,25892.0,0.102242]
[1693833850307,0.05357869,25893.0,25892.0,0.256981]
[1693833854985,0.07357869,25893.0,25892.0,0.256981]
[1693833855184,0.07357869,25893.0,25892.0,0.32433164]
[1693833866597,0.07357869,25893.0,25892.0,0.36295264]
[1693833874475,0.062,25893.0,25892.0,0.61983573]
[1693833874849,0.062,25893.0,25892.0,0.50947364]
[1693833875052,0.062,25893.0,25892.0,0.84383423]
[1693833875261,0.062,25893.0,25892.0,0.75128248]
[1693833875458,0.062,25893.0,25892.0,0.84383423]
[1693833876346,0.062,25893.0,25892.0,0.75128248]
[1693833877474,0.062,25893.0,25892.0,0.89656042]
[1693833877683,0.062,25893.0,25892.0,1.18893984]
[1693833879017,0.082,25893.0,25892.0,1.18893984]
[1693833880838,0.062,25893.0,25892.0,1.18893984]
[1693833881045,0.102,25893.0,25892.0,1.18893984]
[1693833885104,0.062,25893.0,25892.0,1.18893984]
[1693833885303,0.102,25893.0,25892.0,1.18893984]
[1693833885884,0.042,25893.0,25892.0,0.98911217]
[1693833886253,0.002,25893.0,25892.0,1.12793979]
[1693833886460,0.002,25893.0,25892.0,0.98911217]
[1693833886668,0.002,25893.0,25892.0,1.12793979]
[1693833887287,0.002,25893.0,25892.0,0.98911217]
[1693833887914,0.002,25893.0,25892.0,1.22619195]
[1693833888731,0.002,25893.0,25892.0,0.98911217]
[1693833890183,0.002,25893.0,25892.0,1.39052115]
[1693833890384,0.002,25893.0,25892.0,1.25169353]
[1693833891260,0.002,25893.0,25892.0,0.98911217]
[1693833892293,0.002,25893.0,25892.0,1.22595763]
[1693833893522,0.002,25893.0,25892.0,0.98911217]
[1693833893728,0.002,25893.0,25892.0,1.20013474]
[1693833894079,0.002,25893.0,25892.0,0.98911217]
[1693833894488,0.002,25893.0,25892.0,1.25052775]
[1693833894855,0.002,25893.0,25892.0,0.98911217]
[1693833895340,0.002,25893.0,25892.0,1.20681485]
[1693833895750,0.002,25893.0,25892.0,0.98911217]
[1693833895929,0.002,25893.0,25892.0,1.22892558]
[1693833896850,0.002,25893.0,25892.0,0.98911217]
[1693833897907,0.002,25893.0,25892.0,1.12793979]
[1693833898324,0.002,25893.0,25892.0,0.98911217]
[1693833899425,0.002,25893.0,25892.0,1.21948313]
[1693833899585,0.002,25893.0,25892.0,0.98911217]
[1693833899745,0.002,25893.0,25892.0,1.21237607]
[1693833914822,0.002,25893.0,25892.0,1.05789207]
[1693833915039,0.002,25893.0,25892.0,1.21237607]
[1693833915447,0.002,25893.0,25892.0,0.98911217]
[1693833917296,0.002,25893.0,25892.0,1.12793979]
[1693833918540,0.002,25893.0,25892.0,1.38303053]
[1693833918723,0.002,25893.0,25892.0,1.29047878]
[1693833919484,0.002,25893.0,25892.0,1.33675466]
[1693833920955,0.002,25893.0,25892.0,1.56813403]
[1693833921212,0.002,25893.0,25892.0,2.89562209]
[1693833922097,0.001,25893.0,25892.0,2.88362209]
[1693833922310,0.003,25893.0,25892.0,2.90762209]
[1693833922515,0.002,25893.0,25892.0,2.89462209]
[1693833923059,0.06,25898.0,25894.0,0.02]
[1693833923282,0.06,25898.0,25897.0,0.1079]
[1693833923485,0.06,25898.0,25897.0,0.185128]
[1693833923842,0.06,25898.0,25897.0,0.262356]
[1693833924448,0.061,25898.0,25897.0,0.273356]
[1693833924655,0.061,25898.0,25897.0,0.66044278]
[1693833924860,0.061,25898.0,25897.0,0.97985531]
[1693833925308,0.001,25898.0,25897.0,0.97985531]
[1693833925508,0.001,25898.0,25897.0,0.98985531]
[1693833925509,0.062,25898.0,25897.0,0.98985531]
[1693833926587,0.002,25898.0,25897.0,0.98985531]
[1693833926794,0.062,25898.0,25897.0,0.98985531]
[1693833927727,0.042,25898.0,25897.0,0.98985531]
[1693833932479,0.07030066,25898.0,25897.0,0.98985531]
[1693833934254,0.03030066,25898.0,25897.0,0.7329564]
[1693833934654,0.03030066,25898.0,25897.0,0.96340729]
[1693833934855,0.03030066,25898.0,25897.0,0.7329564]
[1693833935057,0.03030066,25898.0,25897.0,1.02454108]
[1693833935399,0.03030066,25898.0,25897.0,0.7329564]
[1693833936008,0.03030066,25898.0,25897.0,0.76343526]
[1693833937874,0.03030066,25898.0,25897.0,1.0139495]
[1693833938293,0.03030066,25898.0,25897.0,0.76343526]
[1693833939638,0.03030066,25898.0,25897.0,0.78343526]
[1693833940671,0.002,25898.0,25897.0,0.78343526]
[1693833942128,0.002,25898.0,25897.0,0.76343526]
[1693833943601,0.002,25898.0,25897.0,1.04962956]
[1693833945527,0.002,25898.0,25897.0,0.77501497]
[1693833947909,0.002,25898.0,25897.0,0.79501497]
[1693833949397,0.002,25898.0,25897.0,1.00842627]
[1693833955812,0.002,25898.0,25897.0,0.98842627]
[1693833956021,0.002,25898.0,25897.0,1.00842627]
[1693833964465,0.002,25898.0,25897.0,1.10086933]
[1693833970305,0.002,25898.0,25897.0,0.88745803]
[1693833971768,0.002,25898.0,25897.0,1.46339682]
[1693833972199,0.002,25898.0,25897.0,1.16361689]
[1693833973027,0.002,25898.0,25897.0,1.4402325]
[1693833974252,0.002,25898.0,25897.0,1.16361689]
[1693833974449,0.022,25898.0,25897.0,1.16361689]
[1693833974709,0.002,25898.0,25897.0,1.16361689]
[1693833974917,0.002,25898.0,25897.0,1.52361689]
[1693833975537,0.002,25898.0,25897.0,1.70850301]
[1693833976574,0.002,25898.0,25897.0,1.56983842]
[1693833977824,0.1969,25903.0,25897.0,1.56983842]
[1693833977825,0.005862,25904.0,25901.0,0.02]
[1693833978036,0.0245,25907.0,25901.0,0.02]
[1693833978037,0.0245,25907.0,25903.0,0.1079]
[1693833978250,0.0245,25907.0,25906.0,0.1079]
[1693833978463,0.0245,25907.0,25906.0,0.37790371]
[1693833978667,0.0245,25907.0,25906.0,0.223703]
[1693833978869,0.0245,25907.0,25906.0,0.32724328]
[1693833979282,0.0245,25907.0,25906.0,0.57387194]
[1693833980106,0.0715,25907.0,25906.0,0.57587194]
[1693833980314,0.0485,25907.0,25906.0,0.57587194]
[1693833980518,0.0245,25907.0,25906.0,0.57387194]
[1693833980929,0.0415,25907.0,25906.0,0.57587194]
[1693833981751,0.0415,25907.0,25906.0,0.96295872]
[1693833983415,0.0415,25907.0,25906.0,0.73633006]
[1693833984966,0.0345,25907.0,25906.0,0.73533006]
[1693833985313,0.0345,25907.0,25906.0,0.98560846]
[1693833985515,0.0345,25907.0,25906.0,0.73533006]
[1693833986134,0.0245,25907.0,25906.0,0.73433006]
[1693833986423,0.0265,25907.0,25906.0,0.75833006]
[1693833987037,0.0265,25907.0,25906.0,0.75933006]
[1693833987200,0.0265,25907.0,25906.0,0.75833006]
[1693833987602,0.0285,25907.0,25906.0,0.78333006]
[1693833989198,0.0285,25907.0,25906.0,1.0020651]
[1693833989402,0.0285,25907.0,25906.0,0.78333006]
[1693833991228,0.0285,25907.0,25906.0,1.02259252]
[1693833991440,0.0285,25907.0,25906.0,0.78333006]
[1693833991617,0.0285,25907.0,25906.0,1.04709567]
[1693833991818,0.0285,25907.0,25906.0,0.78333006]
[1693833992856,0.0285,25907.0,25906.0,0.82333006]
[1693833993060,0.0285,25907.0,25906.0,1.12333006]
[1693833993681,0.0285,25907.0,25906.0,1.40196456]
[1693833994509,0.0285,25907.0,25906.0,1.12333006]
[1693833994685,0.0285,25907.0,25906.0,1.41403864]
[1693833995121,0.0285,25907.0,25906.0,1.12333006]
[1693833995899,0.0285,25907.0,25906.0,1.14333006]
[1693834002114,0.01885573,25907.0,25906.0,1.14333006]
[1693834007703,0.01885573,25907.0,25906.0,1.12333006]
[1693834010147,0.01685573,25907.0,25906.0,1.09933006]
[1693834010569,0.01785573,25907.0,25906.0,1.12433006]
[1693834010775,0.01585573,25907.0,25906.0,1.09933006]
[1693834011004,0.01485573,25907.0,25906.0,1.07433006]
[1693834011208,0.01585573,25907.0,25906.0,1.12433006]
[1693834011419,0.01585573,25907.0,25906.0,1.09933006]
[1693834011619,0.01585573,25907.0,25906.0,1.12433006]
[1693834015115,0.01585573,25907.0,25906.0,1.40559931]
[1693834016338,0.03620462,25907.0,25906.0,1.40559931]
[1693834016539,0.01585573,25907.0,25906.0,1.40559931]
[1693834020727,0.01585573,25907.0,25906.0,0.76433006]
[1693834020954,0.02650687,25907.0,25906.0,0.76433006]
[1693834021572,0.01585573,25907.0,25906.0,0.76433006]
[1693834023350,0.01585573,25907.0,25906.0,1.06089213]
[1693834025928,0.01585573,25907.0,25906.0,0.76433006]
[1693834026117,0.01585573,25907.0,25906.0,1.03921766]
[1693834026527,0.01585573,25907.0,25906.0,0.76433006]
[1693834026733,0.01585573,25907.0,25906.0,1.00762392]
[1693834028254,0.03475995,25907.0,25906.0,1.00762392]
[1693834036771,0.03475995,25907.0,25906.0,0.76433006]
[1693834036977,0.04703781,25907.0,25906.0,0.76433006]
[1693834038077,0.04603781,25907.0,25906.0,0.71433006]
[1693834038281,0.04703781,25907.0,25906.0,0.76433006]
[1693834038491,0.04703781,25907.0,25906.0,0.37724328]
[1693834038700,0.04603781,25907.0,25906.0,0.35224328]
[1693834040018,0.04603781,25907.0,25906.0,0.32724328]
[1693834040315,0.04703781,25907.0,25906.0,0.37424328]
[1693834042420,0.00623318,25907.0,25906.0,0.37424328]
[1693834042692,0.02406851,25907.0,25906.0,0.37424328]
[1693834042895,0.00623318,25907.0,25906.0,0.37424328]
[1693834045458,0.001,25907.0,25906.0,0.37424328]
[1693834049873,0.01883533,25907.0,25906.0,0.37424328]
[1693834052394,0.02470774,25907.0,25906.0,0.22774228]
[1693834052938,0.02470774,25907.0,25906.0,0.162803]
[1693834053524,0.02470774,25907.0,25906.0,0.124202]
[1693834053724,0.02470774,25907.0,25906.0,0.085601]
[1693834054807,0.02470774,25907.0,25906.0,0.124202]
[1693834055432,0.01883533,25907.0,25906.0,0.124202]
[1693834055640,0.01883533,25907.0,25906.0,0.1551326]
[1693834055845,0.01883533,25907.0,25906.0,0.45288836]
[1693834056693,0.01883533,25907.0,25906.0,0.1937336]
[1693834061689,0.01614533,25907.0,25906.0,0.1937336]
[1693834062028,1.643588,25909.0,25906.0,0.1937336]
[1693834062229,1.643588,25909.0,25907.0,0.03402346]
[1693834062426,0.01773336,25908.0,25907.0,0.07262246]
[1693834063482,0.01773336,25908.0,25907.0,0.08762246]
[1693834063630,0.01773336,25908.0,25907.0,0.07262246]
[1693834063835,0.01773336,25908.0,25907.0,0.11122146]
[1693834064042,0.01773336,25908.0,25907.0,0.12622146]
[1693834064255,0.01873336,25908.0,25907.0,0.14022146]
[1693834079353,0.02431167,25908.0,25907.0,0.14022146]
[1693834079562,0.02094167,25908.0,25907.0,0.14022146]
[1693834080577,0.02094167,25908.0,25907.0,0.10162246]
[1693834080804,3.46446624,25908.0,25907.0,0.029]
[1693834081002,4.48334307,25908.0,25907.0,0.029]
[1693834081201,4.2315257,25908.0,25907.0,0.029]
[1693834081648,4.2305257,25908.0,25907.0,0.015]
[1693834081850,4.49593478,25908.0,25907.0,0.015]
[1693834082616,0.772111,25903.0,25902.0,0.00098452]
[1693834082823,0.92694571,25903.0,25902.0,0.00098452]
[1693834082999,0.772111,25903.0,25902.0,0.00098452]
[1693834083230,0.78936155,25903.0,25902.0,0.00098452]
[1693834083413,0.78936155,25903.0,25901.0,0.077215]
[1693834083646,0.79560855,25903.0,25901.0,0.077215]
[1693834083820,0.79760855,25903.0,25901.0,0.09801107]
[1693834084973,0.02549755,25903.0,25901.0,0.10301107]
[1693834085381,0.00457644,25902.0,25901.0,0.10301107]
[1693834086038,0.00457644,25902.0,25901.0,0.10901107]
[1693834086266,0.00457644,25902.0,25901.0,0.09801107]
[1693834086477,0.00457644,25902.0,25901.0,0.10401107]
[1693834086796,0.00457644,25902.0,25901.0,0.09801107]
[1693834087158,0.00457644,25902.0,25901.0,0.10401107]
[1693834087333,0.02180055,25902.0,25901.0,0.09801107]
[1693834087533,0.02180055,25902.0,25901.0,0.10301107]
[1693834087729,0.02380055,25902.0,25901.0,0.10301107]
[1693834088195,0.02380055,25902.0,25901.0,0.09801107]
[1693834088403,0.02680055,25902.0,25901.0,0.09801107]
[1693834093184,0.02680055,25902.0,25901.0,0.13661907]
[1693834093415,0.02222411,25902.0,25901.0,0.13661907]
[1693834098159,0.02222411,25902.0,25901.0,0.34909709]
[1693834098386,0.02222411,25902.0,25901.0,0.53435514]
[1693834098587,0.02222411,25902.0,25901.0,0.67021385]
[1693834099204,0.005,25902.0,25901.0,0.67021385]
[1693834100265,0.005,25902.0,25901.0,0.96342374]
[1693834101338,0.005,25902.0,25901.0,0.67021385]
[1693834103477,0.005,25902.0,25901.0,0.92489628]
[1693834104612,0.02097443,25902.0,25901.0,0.92489628]
[1693834104819,0.005,25902.0,25901.0,0.92489628]
[1693834106278,0.02094611,25902.0,25901.0,0.92489628]
[1693834108473,0.02094611,25902.0,25901.0,0.95556745]
[1693834111711,0.02094611,25902.0,25901.0,0.98780642]
[1693834118547,0.01845382,25902.0,25901.0,0.98780642]
[1693834119697,0.01845382,25902.0,25901.0,0.70088502]
[1693834128367,0.01845382,25902.0,25901.0,0.79304898]
[1693834132539,0.00250771,25902.0,25901.0,0.79304898]
[1693834132743,0.00250771,25902.0,25901.0,1.1608679]
[1693834132963,0.077215,25908.0,25901.0,1.06870394]
[1693834133175,0.233815,25908.0,25905.0,0.1079]
[1693834133431,0.077215,25908.0,25906.0,0.115803]
[1693834135916,0.01590324,25907.0,25906.0,0.115803]
[1693834137634,0.01590324,25907.0,25906.0,0.116803]
[1693834138036,0.01590324,25907.0,25906.0,0.115803]
[1693834138275,0.02790324,25907.0,25906.0,0.1430334]
[1693834138472,0.02990324,25907.0,25906.0,0.1430334]
[1693834174821,0.02990324,25907.0,25906.0,0.67662118]
[1693834197153,0.02990324,25907.0,25906.0,0.2895344]
[1693834197361,0.02990324,25907.0,25906.0,0.1816344]
[1693834205069,0.02990324,25907.0,25906.0,0.2895344]
[1693834206871,0.02990324,25907.0,25906.0,0.67662118]
[1693834208381,0.01790324,25907.0,25906.0,0.67562118]
[1693834208803,0.01590324,25907.0,25906.0,0.68062118]
[1693834209006,0.01590324,25907.0,25906.0,0.68662118]
[1693834209435,0.01590324,25907.0,25906.0,0.68062118]
[1693834209652,0.01590324,25907.0,25906.0,0.72522218]
[1693834210064,0.01590324,25907.0,25906.0,0.57872118]
[1693834211691,0.01590324,25907.0,25906.0,0.57272118]
[1693834211916,0.01590324,25907.0,25906.0,0.56772118]
[1693834212093,0.01590324,25907.0,25906.0,0.57372118]
[1693834212304,0.01590324,25907.0,25906.0,0.57272118]
[1693834212645,0.01590324,25907.0,25906.0,0.56772118]
[1693834212841,0.01790324,25907.0,25906.0,0.1806344]
[1693834213098,0.02090324,25907.0,25906.0,0.1420334]
[1693834216982,0.02090324,25907.0,25906.0,0.1034324]
[1693834217796,0.02090324,25907.0,25906.0,0.0648314]
[1693834218131,0.02090324,25907.0,25906.0,0.1034324]
[1693834221207,0.02090324,25907.0,25906.0,0.0648314]
[1693834221765,0.79289524,25907.0,25906.0,0.0648314]
[1693834222126,0.79289524,25907.0,25906.0,0.0262304]
[1693834223077,0.79289524,25907.0,25906.0,0.0648314]
[1693834224701,0.02090324,25907.0,25906.0,0.0648314]
[1693834225937,0.02090324,25907.0,25905.0,0.038601]
[1693834226141,2.33687924,25907.0,25904.0,0.185107]
[1693834227067,2.33687924,25907.0,25904.0,0.146504]
[1693834227268,2.33687924,25907.0,25904.0,0.1079]
[1693834227466,2.33487924,25907.0,25904.0,0.176317]
[1693834227700,2.33187924,25907.0,25904.0,0.176317]
[1693834227915,2.33187924,25907.0,25905.0,0.005]
[1693834228327,2.33187924,25907.0,25904.0,0.176317]
[1693834228739,2.33287924,25907.0,25904.0,0.205317]
[1693834228943,2.33287924,25907.0,25905.0,0.0282525]
[1693834229333,2.33287924,25907.0,25905.0,0.0342525]
[1693834230076,2.33287924,25907.0,25905.0,0.0282525]
[1693834230619,2.33187924,25907.0,25905.0,0.0282525]
[1693834230829,2.33187924,25907.0,25905.0,0.0332525]
[1693834231010,2.33187924,25907.0,25905.0,0.005]
[1693834231870,3.10387124,25907.0,25905.0,0.005]
[1693834232068,3.10387124,25907.0,25905.0,0.011]
[1693834232865,3.10387124,25907.0,25902.0,0.07820225]
[1693834233183,3.26170595,25907.0,25905.0,0.002]
[1693834233355,3.10387124,25907.0,25902.0,0.07820225]
[1693834233568,3.25870595,25907.0,25903.0,0.02247103]
[1693834233779,3.10687124,25907.0,25905.0,0.002]
[1693834233979,3.10687124,25907.0,25903.0,0.02247103]
[1693834234734,3.10387124,25907.0,25903.0,0.02247103]
[1693834235157,3.11987124,25907.0,25903.0,0.02447103]
[1693834235363,3.12287124,25907.0,25905.0,0.002]
[1693834235581,3.12287124,25907.0,25903.0,0.02447103]
[1693834235582,3.11987124,25907.0,25903.0,0.02447103]
[1693834235987,3.21544918,25907.0,25903.0,0.02547103]
[1693834236200,3.21244918,25907.0,25903.0,0.02447103]
[1693834236410,3.21544918,25907.0,25905.0,0.002]
[1693834236638,3.12287124,25907.0,25905.0,0.002]
[1693834236847,3.11987124,25907.0,25903.0,0.02447103]
[1693834236997,3.10687124,25907.0,25903.0,0.02347103]
[1693834237403,3.12287124,25907.0,25905.0,0.002]
[1693834237959,3.10687124,25907.0,25903.0,0.02347103]
[1693834238162,3.12287124,25907.0,25903.0,0.02547103]
[1693834238364,3.11987124,25907.0,25903.0,0.02447103]
[1693834238541,3.21244918,25907.0,25903.0,0.02447103]
[1693834238756,3.21544918,25907.0,25905.0,0.002]
[1693834238966,3.19944918,25907.0,25905.0,0.002]
[1693834239167,3.19644918,25907.0,25903.0,0.02247103]
[1693834239369,3.19644918,25907.0,25903.0,0.02347103]
[1693834239370,3.19944918,25907.0,25903.0,0.02347103]
[1693834240033,3.20244918,25907.0,25905.0,0.002]
[1693834240619,3.21244918,25907.0,25905.0,0.002]
[1693834242003,3.21544918,25907.0,25905.0,0.002]
[1693834242199,3.21244918,25907.0,25905.0,0.002]
[1693834242399,3.21544918,25907.0,25905.0,0.004]